fUST/lending_fUST_20240320
["ID","MTS","AMOUNT","RATE_DAILY","PERIOD"]
[319654675,1710906854621,205.20103912,0.000195,2]
[319654678,1710906932103,154.86062544,0.000195,2]
[319654680,1710906950143,154.86062544,0.000195,2]
[319654681,1710906970108,154.86062544,0.000195,2]
[319654682,1710906990239,154.86062544,0.000195,2]
[319654684,1710907016139,206.6168037,0.000195,2]
[319654686,1710907296013,155.51611869,0.00019498,2]
[319654687,1710907300444,231.81554834,0.000195,2]
[319654688,1710907305140,14952.87650882,0.000195,2]
[319654689,1710907305166,2356.89485959,0.000195,2]
[319654690,1710907308925,236.54673702,0.000195,2]
[319654698,1710907629169,-559.27847432,0.0002997,2]
[319654699,1710907629205,-534.46429513,0.0002997,2]
[319654700,1710907629234,-201.27766774,0.00029971,2]
[319654701,1710907629265,-1177.57825968,0.0003007,4]
[319654702,1710907629293,-251.24502361,0.0003007,4]
[319654703,1710907629326,-184.22416851,0.0003007,4]
[319654704,1710907629352,-864.70422916,0.00030071,4]
[319654705,1710907682593,-322.45069646,0.00029969,2]
[319654706,1710907682613,-154.86062544,0.0002997,2]
[319654707,1710907682634,-94.6886781,0.0002997,2]
[319654708,1710907755100,-599.8256143,0.00029961,2]
[319654709,1710907755123,-154.86062544,0.00029961,2]
[319654710,1710907755145,-154.86062544,0.00029962,2]
[319654711,1710907755170,-154.86062544,0.00029962,2]
[319654712,1710907755191,-154.86062544,0.00029962,2]
[319654713,1710907755212,-179.3565902,0.00029963,2]
[319654714,1710907755240,-171.1073282,0.00029964,2]
[319654715,1710907755262,-469.31418008,0.00029964,2]
[319654716,1710907755296,-127.81904653,0.00029964,2]
[319654717,1710907755317,-210.95504491,0.00029965,2]
[319654718,1710907755341,-539.22321355,0.00029965,2]
[319654719,1710907755362,-154.86062544,0.00029965,2]
[319654720,1710907755382,-290.98092274,0.00029966,2]
[319654721,1710907755403,-154.86062544,0.00029966,2]
[319654722,1710907755425,-1609.06716003,0.00029966,2]
[319654723,1710907755445,-160.79778428,0.00029967,2]
[319654724,1710907756214,-120.17727718,0.00029967,2]
[319654725,1710907756239,-304.70562123,0.00029967,2]
[319654726,1710907756260,-154.86062544,0.00031427,4]
[319654727,1710907756281,-1452.96698322,0.00031428,2]
[319654737,1710907763096,-262.099081,0.0002996,2]
[319654770,1710907832627,-150.0,0.0002797,2]
[319654771,1710907832637,-28.88184174,0.0002996,2]
[319654772,1710907832646,-55.47180878,0.00031428,2]
[319654773,1710907832656,-200.0,0.00031881,2]
[319654775,1710907832665,-169.557147,0.00033304,2]
[319654777,1710907832675,-1365.8096539,0.00034251,2]
[319654778,1710907832684,-1072.32623552,0.00035,21]
[319654780,1710907832695,-354.061616,0.00035081,2]
[319654782,1710907832704,-6595.9126712,0.00035081,2]
[319654784,1710907832714,-24900.0,0.00035308,2]
[319654785,1710907832724,-1627.610025,0.00035616,120]
[319654786,1710907832734,-166.666666,0.00036379,2]
[319654788,1710907832743,-272.81650963,0.00036399,7]
[319654789,1710907832753,-632.15760903,0.00036441,2]
[319654791,1710907832764,-380.0,0.00037085,2]
[319654792,1710907832773,-166.666666,0.0003737,2]
[319654794,1710907832791,-354.061616,0.00037537,2]
[319654796,1710907832801,-166.666666,0.00038362,2]
[319654797,1710907832810,-272.81650963,0.00038423,7]
[319654799,1710907832819,-154.86062544,0.00038999,4]
[319654800,1710907832829,-632.0,0.00039,2]
[319654802,1710907832839,-317.79991253,0.00039353,30]
[319654803,1710907832848,-166.666666,0.00039354,2]
[319654805,1710907832858,-1500.0,0.0004,2]
[319654807,1710907832867,-272.81650963,0.0004001,30]
[319654809,1710907832877,-262.73678035,0.00040344,4]
[319654811,1710907832886,-166.666666,0.00040346,2]
[319654812,1710907832895,-2641.29807362,0.00041,2]
[319654813,1710907832904,-9297.91,0.00041095,5]
[319654814,1710907832913,-166.666666,0.00041338,2]
[319654815,1710907832922,-1627.610025,0.00041553,120]
[319654816,1710907832931,-158.499706,0.0004156,2]
[319654817,1710907832940,-216.96028936,0.00041841,4]
[319654818,1710907832949,-582.0,0.00042,30]
[319654819,1710907832958,-200.0,0.000422,17]
[319654820,1710907832967,-622.0,0.000422,17]
[319654821,1710907832976,-153.5158216,0.00042521,2]
[319654822,1710907832985,-153.0,0.00042521,2]
[319654823,1710907832994,-153.0,0.00042521,2]
[319654824,1710907833003,-296.2283025,0.00042521,2]
[319654825,1710907833013,-153.0,0.00042521,2]
[319654826,1710907833022,-153.0,0.00042521,2]
[319654827,1710907833035,-153.0,0.00042521,2]
[319654828,1710907833045,-153.0,0.00042521,2]
[319654829,1710907833055,-153.0,0.00042521,2]
[319654830,1710907833065,-153.0,0.00042521,2]
[319654831,1710907833075,-153.0,0.00042521,2]
[319654832,1710907833084,-153.0,0.00042521,2]
[319654833,1710907833094,-153.0,0.00042521,2]
[319654834,1710907833104,-153.0,0.00042521,2]
[319654835,1710907833113,-306.0,0.00042521,2]
[319654836,1710907833122,-153.0,0.00042521,2]
[319654837,1710907833132,-153.0,0.00042521,2]
[319654838,1710907833141,-153.0,0.00042521,2]
[319654839,1710907833151,-153.0,0.00042521,2]
[319654840,1710907833164,-431.220318,0.00042521,2]
[319654841,1710907833174,-153.0,0.00042521,2]
[319654842,1710907833184,-153.0,0.00042521,2]
[319654843,1710907833195,-2000.0,0.0004268,90]
[319654844,1710907833205,-532.1487776,0.00042695,4]
[319654845,1710907833215,-241.37656486,0.00042695,4]
[319654846,1710907833226,-286.05844471,0.00042695,4]
[319654847,1710907833359,-260.21421712,0.00042695,4]
[319654848,1710907833371,-427.51864849,0.00042695,4]
[319654849,1710907833380,-980.00921953,0.00042695,4]
[319654850,1710907833392,-229.01842609,0.00042695,4]
[319654851,1710907833402,-394.93706151,0.00042695,4]
[319654852,1710907833411,-155.16107105,0.00042695,4]
[319654853,1710907833422,-323.92329353,0.00042695,4]
[319654854,1710907833431,-2470.73652212,0.00042695,4]
[319654855,1710907833441,-370.46797038,0.00042695,4]
[319654856,1710907833450,-281.46310593,0.00042695,4]
[319654857,1710907833459,-235.22640176,0.00042695,4]
[319654858,1710907833468,-3148.79744482,0.00042695,4]
[319654859,1710907833478,-270.59901967,0.00042695,4]
[319654860,1710907833487,-500.0,0.00042696,31]
[319654861,1710907833496,-409.30155232,0.00042696,31]
[319654862,1710907833506,-500.0,0.00042696,31]
[319654863,1710907833516,-321.86920575,0.00042696,31]
[319654864,1710907833525,-500.0,0.00042696,31]
[319654865,1710907833538,-500.0,0.00042696,31]
[319654866,1710907833547,-500.0,0.00042696,31]
[319654867,1710907833556,-500.0,0.00042696,31]
[319654868,1710907833566,-500.0,0.00042696,31]
[319654869,1710907833575,-642.42602007,0.00042696,31]
[319654870,1710907833585,-351.78874361,0.00042696,4]
[319654871,1710907833595,-1000.0,0.00042697,2]
[319654872,1710907833605,-8164.76289692,0.00042697,2]
[319654908,1710907838624,-7146.34024036,0.00042697,2]
[319654916,1710907838691,-834.05931608,0.00042697,2]
[319655106,1710907840694,-24801.2,0.00042697,2]
[319655366,1710907843691,-315.435,0.00042697,2]
[319655380,1710907843828,-409.05412226,0.00042697,2]
[319655383,1710907843840,-2000.0,0.00042697,2]
[319655729,1710908606620,-994.38955449,0.00026687,4]
[319655730,1710908606641,-325.68369138,0.00026687,2]
[319655731,1710908606661,-154.86062544,0.00026688,2]
[319655732,1710908606681,-405.14954919,0.00026688,2]
[319655733,1710908606701,-154.86062544,0.00026689,2]
[319655734,1710908606723,-154.86062544,0.0002669,2]
[319655735,1710908606745,-272.19532862,0.00026691,2]
[319655736,1710908674796,-171.1073282,0.0002669,2]
[319655737,1710908674817,-154.86062544,0.0002669,2]
[319655738,1710908674839,-3.03204636,0.00026691,2]
[319655739,1710908743625,-382.11724394,0.00026418,2]
[319655740,1710908743646,-210.95504491,0.00026418,2]
[319655741,1710908743666,-302.11520456,0.00026419,2]
[319655742,1710908743686,-409.39334905,0.0002642,2]
[319655743,1710908743705,-469.98746995,0.00026421,2]
[319655744,1710908743729,-3185.22770627,0.00026422,10]
[319655745,1710908743749,-783.57894867,0.00026688,2]
[319655746,1710908743772,-38.65368201,0.00026691,2]
[319655747,1710908743792,-154.86062544,0.00026691,2]
[319655748,1710908743814,-687.77022552,0.00026691,2]
[319655749,1710908743834,-630.34049968,0.0003,2]
[319655750,1710908751145,-394.46079043,0.0003,2]
[319655751,1710908751167,-158.499706,0.00038469,2]
[319655752,1710908751187,-682.73526505,0.00038566,120]
[319655753,1710908811202,-205.03177245,0.00026689,2]
[319655754,1710908811224,-3504.14814187,0.0002669,2]
[319655755,1710908811245,-623.82008568,0.0003,4]
[319655756,1710908849087,-17.43082547,0.0003,4]
[319655757,1710908849107,-2161.89445686,0.00038158,4]
[319655758,1710908849126,-166.666666,0.00038159,2]
[319655759,1710908849145,-854.0010751,0.00038564,2]
[319655760,1710908849165,-631.46109207,0.00038565,4]
[319655761,1710908849184,-924.0674815,0.00038566,4]
[319655762,1710908849204,-154.86062544,0.00038566,2]
[319655763,1710908849223,-131.06974695,0.00038566,120]
[319655764,1710908849243,-372.0,0.0003871,3]
[319655765,1710908849264,-11054.04639683,0.00038711,2]
[319655766,1710908849293,-5714.91183679,0.00038711,2]
[319655793,1710909032757,-795.0,0.00035,7]
[319656389,1710909044292,-398.28960739,0.00034999,7]
[319656391,1710909044302,-2951.29420447,0.00035,7]
[319656393,1710909044315,-9746.81161113,0.00035,7]
[319656829,1710909048549,-48603.95656681,0.00035,7]
[319659665,1710909198581,-994.38955449,0.00029748,4]
[319659666,1710909198602,-1476.73003936,0.00029749,2]
[319659667,1710909198621,-2159.88040615,0.0002975,10]
[319659669,1710909328477,-469.98746995,0.00029748,2]
[319659670,1710909328498,-596.15069922,0.00029749,2]
[319659671,1710909328519,-143.14901658,0.0002975,10]
[319659672,1710909328540,-154.86062544,0.0002975,2]
[319659673,1710909328561,-530.85218881,0.0003,2]
[319659674,1710909402029,-290.98092274,0.00029743,2]
[319659675,1710909402050,-212.37767704,0.00029744,2]
[319659676,1710909402071,-534.46429513,0.00029745,2]
[319659677,1710909402093,-782.24495806,0.00029746,2]
[319659678,1710909402117,-596.15069922,0.00029747,2]
[319659679,1710909402139,-184.78144781,0.0002975,2]
[319659680,1710909468002,-153.0,0.00024596,2]
[319659691,1710909939109,-154.86062544,0.00024596,7]
[319659692,1710909939129,-18.42181113,0.0002975,2]
[319659693,1710909939149,-597.80075257,0.00032558,2]
[319659694,1710909939168,-178.129948,0.00032559,2]
[319659695,1710909939188,-231.84653317,0.00032724,2]
[319659698,1710909995164,-5359.0,0.0002975,20]
[319659699,1710910149553,-453.03660871,0.00030741,4]
[319659700,1710910149574,-516.49155915,0.00030741,4]
[319659701,1710910153216,-189.37752679,0.00030741,4]
[319659702,1710910153236,-235.93981312,0.00030742,2]
[319659703,1710910153257,-298.31835509,0.00030843,7]
[319659704,1710910153278,-9276.364305,0.00032555,2]
[319659858,1710910237985,-264.76927259,0.00030455,2]
[319659860,1710910237996,-840.82136414,0.00030455,2]
[319659862,1710910238006,-117.80097586,0.00032555,2]
[319659865,1710910238022,-14234.95969454,0.00032555,2]
[319659866,1710910238031,-185.8970426,0.0003258,6]
[319659868,1710910238040,-1212.4309938,0.0003268,2]
[319659870,1710910238050,-18.15346683,0.00032724,2]
[319659872,1710910238059,-1929.11854499,0.00032876,4]
[319659876,1710910238078,-166.666666,0.00032877,2]
[319659878,1710910238090,-169.557147,0.00033016,2]
[319659880,1710910238100,-264.5580483,0.00033208,2]
[319659882,1710910238109,-166.666666,0.00033656,2]
[319659884,1710910238119,-597.80075257,0.00034434,2]
[319659886,1710910238129,-166.666666,0.00034435,2]
[319659888,1710910238140,-796.74133849,0.00035,7]
[319659891,1710910238154,-7244.65439842,0.00035,7]
[319660397,1710910243136,-1724.86536252,0.00035,7]
[319660399,1710910243149,-1602.64084832,0.00035,7]
[319660401,1710910243160,-429.82711525,0.00035,7]
[319660403,1710910243172,-3127.66704127,0.00035,7]
[319660784,1710910246177,-1228.7,0.00035,7]
[319660827,1710910246571,-1265.3771201,0.00035,7]
[319660830,1710910246583,-8295.13874,0.00035,7]
[319661773,1710910429856,1911.74320778,0.0002,2]
[319661781,1710910455479,2316.26823232,0.000125,2]
[319661782,1710910473159,322.20162408,0.00022,2]
[319661783,1710910479693,5167.41174418,0.00012375,2]
[319661784,1710910497680,2614.38691808,0.00012375,2]
[319661785,1710910517738,-3436.23958139,0.00025088,2]
[319661786,1710910517759,-783.57894867,0.00025089,2]
[319661787,1710910517779,-14490.18146994,0.0002509,2]
[319661788,1710910583754,-3504.14814187,0.00025088,2]
[319661789,1710910583775,-2745.78191176,0.00025089,2]
[319661790,1710910583801,-8323.06994637,0.0002509,2]
[319661791,1710910601859,2845.77586455,0.00024889,10]
[319661792,1710910643331,-12000.0,0.00024889,2]
[319661793,1710910643685,-3972.10775663,0.00024889,2]
[319661794,1710910656967,5592.54329194,0.00024889,2]
[319661845,1710911216560,-1984.0156596,0.00026789,2]
[319661846,1710911216583,-534.46429513,0.00026888,2]
[319661847,1710911216605,-250.0,0.00026889,2]
[319661848,1710911216624,-212.37767704,0.00027047,2]
[319661849,1710911216644,-154.86062544,0.00027048,2]
[319661850,1710911216663,-469.98746995,0.00027049,2]
[319661851,1710911216684,-559.27847432,0.00027049,2]
[319661852,1710911216704,-154.86062544,0.0002705,2]
[319661853,1710911216724,-876.45467613,0.00027051,2]
[319661854,1710911216747,-807.30445512,0.00027051,2]
[319661855,1710911216766,-1571.32607788,0.00027051,2]
[319661856,1710911216786,-10272.06996395,0.00027052,2]
[319661861,1710911229123,-325.68369138,0.00026787,2]
[319661862,1710911229145,-179.3565902,0.00026788,2]
[319661863,1710911229167,-3267.73183657,0.00027052,2]
[319661865,1710911241309,2303.02942273,0.00022994,5]
[319661915,1710911299584,154.86062544,0.00022994,2]
[319661920,1710911315599,201.32986935,0.00022994,2]
[319661931,1710911357163,-1213.96,0.00025881,10]
[319661932,1710911357185,-186.99808186,0.00026143,2]
[319661933,1710911357206,-930.41641748,0.00026144,2]
[319661934,1710911357230,-1476.73003936,0.00026144,2]
[319661935,1710911357252,-1812.803619,0.00026145,2]
[319661936,1710911357272,-2330.6567934,0.00026315,2]
[319661937,1710911357292,-154.86062544,0.0002677,2]
[319661938,1710911357313,-636.02174737,0.00026771,4]
[319661939,1710911359105,-171.1073282,0.0002588,2]
[319661940,1710911359130,-290.98092274,0.0002588,2]
[319661941,1710911359150,-358.36780712,0.00026771,4]
[319661942,1710911359172,-322.45069646,0.00026771,2]
[319661943,1710911359193,-597.13322661,0.00026772,2]
[319661944,1710911359215,-1919.09606837,0.00026773,2]
[319661946,1710911359236,-1192.3538559,0.00026775,2]
[319661947,1710911359257,-1259.94279238,0.00027052,2]
[319661948,1710911359277,-26.13660841,0.00028022,2]
[319661950,1710911360238,-2973.86339159,0.00028022,2]
[319661951,1710911360260,-24890.0,0.00028216,2]
[319661952,1710911360281,-1239.0471427,0.00028535,2]
[319661953,1710911360302,-469.98746995,0.00029998,2]
[319661954,1710911360322,-534.46429513,0.00029999,2]
[319661955,1710911360341,-7424.24592154,0.0003,2]
[319661956,1710911360365,-597.80075257,0.0003,2]
[319661957,1710911360384,-154.86062544,0.0003,4]
[319661958,1710911360530,-641.25091115,0.00030554,4]
[319661959,1710911360552,-219.0727127,0.0003056,2]
[319661960,1710911366087,-596.15069922,0.0002588,2]
[319661961,1710911366116,-876.45467613,0.00029998,2]
[319661962,1710911366139,-7267.71940899,0.0003056,2]
[319661963,1710911366160,-2000.0,0.00030642,2]
[319661964,1710911366181,-158.52599123,0.00030889,2]
[319661965,1710911366205,-538.21856454,0.00030889,2]
[319661966,1710911366230,-264.7114934,0.00030889,2]
[319661967,1710911366253,-358.4759053,0.00030996,4]
[319661968,1710911366277,-425.35577673,0.00030998,4]
[319661969,1710911366300,-24900.0,0.00031,30]
[319661970,1710911366323,-249.54930354,0.00032338,4]
[319661971,1710911366346,-166.666666,0.00032877,2]
[319661972,1710911366373,-737.06042448,0.000329,2]
[319661973,1710911366395,-1000.0,0.000329,2]
[319661974,1710911366418,-154.86062544,0.00032998,4]
[319661975,1710911366439,-1608.41114111,0.00032998,4]
[319661976,1710911366460,-810.92468967,0.00032998,4]
[319661977,1710911366487,-320.5465603,0.00032998,4]
[319661978,1710911366507,-642.81378476,0.00032998,4]
[319661979,1710911366529,-853.47689089,0.00032998,4]
[319661980,1710911366550,-239.96615684,0.00032998,4]
[319661981,1710911366573,-326.12478573,0.00032998,4]
[319661982,1710911366595,-599.8256143,0.00032998,4]
[319661983,1710911366619,-154.86062544,0.00032998,4]
[319661984,1710911366639,-154.86062544,0.00032998,4]
[319661985,1710911366661,-304.70562123,0.00032998,4]
[319661986,1710911366683,-154.86062544,0.00032998,4]
[319661987,1710911366705,-352.22965961,0.00032999,7]
[319661988,1710911366728,-105181.39749927,0.00033,7]
[319661989,1710911370136,-10019.45188662,0.00030999,10]
[319662033,1710911438090,-491.37361632,0.000309,2]
[319662034,1710911438101,-597.80075257,0.00030998,2]
[319662035,1710911438111,-436.93890702,0.00030999,10]
[319662036,1710911438159,-234.17589092,0.00030999,10]
[319662037,1710911438169,-597.5345544,0.00032061,2]
[319662238,1710911440723,-2914.0110521,0.00031999,2]
[319662240,1710911440733,-855.4324288,0.00032061,2]
[319662242,1710911440742,-168.90006634,0.00032998,4]
[319662244,1710911440752,-548.58352956,0.00032998,4]
[319662246,1710911440762,-469.08726653,0.00032998,4]
[319662248,1710911440771,-510.63344394,0.00032998,4]
[319662250,1710911440781,-156.24249828,0.00032998,4]
[319662252,1710911440791,-322.45069746,0.00032998,4]
[319662254,1710911440801,-227.41828234,0.00032998,4]
[319662521,1710911443471,-480.73410356,0.00032998,4]
[319662523,1710911443481,-232.38333972,0.00032998,4]
[319662525,1710911443490,-886.90320547,0.00032998,4]
[319662527,1710911443499,-1984.09026402,0.00032998,4]
[319662529,1710911443509,-701.65544651,0.00032998,4]
[319662531,1710911443518,-155.57149049,0.00032998,4]
[319662533,1710911443529,-711.56067481,0.00032999,7]
[319662535,1710911443538,-154.87609912,0.00032999,4]
[319662537,1710911443547,-346.69421985,0.00032999,4]
[319662539,1710911443557,-286.31956191,0.00032999,4]
[319662541,1710911443567,-181.0,0.00033,2]
[319662543,1710911443577,-9731.79080574,0.00033,7]
[319662806,1710911446205,-800.97022928,0.00031998,4]
[319662808,1710911446218,-12534.83485394,0.00033,7]
[319662839,1710911446386,-10805.51595591,0.00033,7]
[319664556,1710911893307,-539.22321355,0.00029785,2]
[319664557,1710911893331,-210.95504491,0.00029786,2]
[319664558,1710911893352,-154.87609912,0.00029786,2]
[319664559,1710911893375,-6634.94564242,0.00029787,2]
[319664652,1710912192731,313.04294276,0.00024889,10]
[319664654,1710912199588,-155.0,0.00024999,2]
[319664655,1710912203119,1242.39,0.00024889,10]
[319664656,1710912267340,-269.83823354,0.00024996,2]
[319664657,1710912267360,-3504.14814187,0.00024997,2]
[319664658,1710912267379,-510.01362459,0.00024998,2]
[319664675,1710912336168,-876.45467613,0.00028518,2]
[319664676,1710912336189,-353.77747624,0.00028519,2]
[319664677,1710912336858,-7000.0,0.00028519,2]
[319664678,1710912338767,-10806.0,0.00028519,2]
[319664761,1710912374989,-469.98746995,0.00028518,2]
[319664762,1710912375009,-1010.01253005,0.00028519,2]
[319664766,1710912433243,-154.86062544,0.00028518,2]
[319664767,1710912433279,-5730.20999371,0.00028519,2]
[319664768,1710912433304,-1039.124285,0.00028548,2]
[319664769,1710912433334,-280.97506146,0.00028588,2]
[319664770,1710912433363,-196.5371823,0.00028589,2]
[319664771,1710912433400,-250.0,0.00028659,2]
[319664772,1710912433428,-95.91519595,0.00028776,2]
[319664773,1710912445085,-314.06249831,0.00025387,2]
[319664774,1710912445105,-314.06249831,0.00026955,2]
[319664775,1710912445129,-287.26785015,0.00028776,2]
[319664776,1710912445150,-178.129948,0.00028846,2]
[319664777,1710912445171,-300.0,0.00029359,2]
[319664778,1710912445191,-274.36606755,0.0002936,2]
[319664779,1710912552110,-154.86062544,0.00029359,2]
[319664780,1710912552132,-9484.05089775,0.0002936,2]
[319664781,1710912552152,-597.80075257,0.00030885,2]
[319664782,1710912552172,-158.499706,0.00030886,2]
[319664783,1710912552195,-360.0,0.0003089,2]
[319664784,1710912552215,-10690.56668456,0.0003089,10]
[319664785,1710912552235,-943.75759268,0.000309,2]
[319664786,1710912552255,-158.4418391,0.00031685,2]
[319664787,1710912552276,-155.89592061,0.00031999,2]
[319664788,1710912552295,-424.60080532,0.00032569,4]
[319664789,1710912552315,-3406.30845617,0.0003263,2]
[319664790,1710912552335,-166.666666,0.00032877,2]
[319664791,1710912552355,-1000.0,0.00032899,2]
[319664792,1710912552379,-5856.39251444,0.00032899,2]
[319664793,1710912552398,-1613.17839876,0.00032899,2]
[319664794,1710912552416,-156.02700146,0.00032964,2]
[319664795,1710912552435,-150.5,0.0003297,35]
[319664796,1710912552460,-150.5,0.0003298,35]
[319664797,1710912552479,-150.5,0.0003299,35]
[319664798,1710912552498,-290.98092274,0.00032997,4]
[319664799,1710912552518,-1609.06716003,0.00032997,4]
[319664800,1710912552538,-154.86062544,0.00032997,4]
[319664801,1710912552559,-641.15569708,0.00032997,4]
[319664802,1710912552580,-297.96844321,0.00032997,4]
[319664804,1710912618392,629.17172845,0.00030799,2]
[319664884,1710912632428,-326.0,0.00031997,4]
[319664891,1710912632558,-474.97022928,0.00031997,4]
[319664892,1710912632568,-597.80075257,0.00031997,2]
[319664894,1710912632578,-631.46109207,0.00031997,4]
[319664896,1710912632588,-250.0,0.00031998,2]
[319664897,1710912632598,-2000.0,0.0003263,2]
[319664899,1710912632608,-166.666666,0.00032877,2]
[319664900,1710912632621,-300.0,0.00032963,3]
[319664901,1710912632631,-341.61157345,0.00032997,4]
[319664902,1710912632642,-261.996359,0.00032997,4]
[319664903,1710912632651,-351.78874361,0.00032997,4]
[319664904,1710912632662,-1571.32607788,0.00032997,4]
[319664905,1710912632673,-1977.906602,0.00032997,4]
[319664906,1710912632683,-454.80113187,0.00032997,4]
[319664907,1710912632695,-807.30445512,0.00032997,4]
[319664908,1710912632705,-559.27847432,0.00032997,4]
[319664909,1710912632717,-1177.40322805,0.00032997,4]
[319664910,1710912632727,-154.86062544,0.00032997,4]
[319664911,1710912632737,-168.16597108,0.00032997,4]
[319664912,1710912632747,-406.74494564,0.00032997,4]
[319664913,1710912632761,-155.01395126,0.00032997,4]
[319664914,1710912632772,-659.11431578,0.00032998,4]
[319664915,1710912632782,-212.64282188,0.00032998,4]
[319664916,1710912632792,-152.84,0.00032998,2]
[319664917,1710912632802,-153.83376141,0.00032998,7]
[319664918,1710912632812,-500.0,0.00032998,7]
[319664919,1710912632822,-475.29657105,0.00032998,7]
[319664920,1710912632833,-406.77895264,0.00032998,7]
[319664921,1710912632842,-500.0,0.00032998,7]
[319664922,1710912632852,-409.30155232,0.00032998,7]
[319664923,1710912632862,-500.0,0.00032998,7]
[319664924,1710912632872,-500.0,0.00032998,7]
[319664925,1710912632882,-500.0,0.00032998,7]
[319664926,1710912632893,-500.0,0.00032998,7]
[319664927,1710912632902,-500.0,0.00032998,7]
[319664928,1710912632912,-482.86353708,0.00032998,7]
[319664929,1710912632922,-500.0,0.00032998,7]
[319664930,1710912632933,-500.0,0.00032998,7]
[319664931,1710912632943,-321.86920575,0.00032998,7]
[319664932,1710912632952,-160.0,0.00032998,10]
[319664933,1710912632962,-69239.70515859,0.00032999,2]
[319664934,1710912632981,-119333.70637228,0.00032999,2]
[319664935,1710912632992,-3252.62172899,0.00032999,2]
[319665037,1710912638335,-10690.56668456,0.00031996,10]
[319665040,1710912638345,-2028.25474138,0.00032999,2]
[319665042,1710912638356,-818.33809018,0.00032999,2]
[319665082,1710912638578,-1235.21,0.00032999,2]
[319665087,1710912638597,-261920.17901261,0.00032999,2]
[319665136,1710912639066,-992.99928,0.00032999,2]
[319665483,1710912642522,-310000.0,0.00032999,2]
[319665485,1710912642533,-7585.17469667,0.00032999,2]
[319665487,1710912642545,-88091.2824938,0.00032999,2]
[319665489,1710912642557,-6106.8,0.00032999,2]
[319665494,1710912642593,-7014.86794793,0.00032999,2]
[319665496,1710912642608,-67815.249935,0.00032999,2]
[319665498,1710912642620,-1000.0,0.00032999,2]
[319665636,1710912643644,-261.95674491,0.00032999,2]
[319666012,1710912646410,-12.3140085,0.00032999,2]
[319666020,1710912646444,-12200.0,0.00032999,2]
[319666036,1710912646515,-1225.63,0.00032999,2]
[319668140,1710912714934,-1050.0,0.00032897,10]
[319668144,1710913558293,-1052.79321318,0.0003069,4]
[319668145,1710913558314,-133.18370533,0.0003069,4]
[319668146,1710913703966,-405.14954919,0.00024998,2]
[319668147,1710913703996,-539.22321355,0.00024999,2]
[319668148,1710913704026,-141.62723726,0.00025,2]
[319668149,1710913753108,-345.1343612,0.000249,2]
[319668150,1710913753129,-13.23338818,0.00025,2]
[319668151,1710913753149,-15972.10775663,0.00025,2]
[319668152,1710913753171,-687.77022552,0.00025,2]
[319668153,1710913753191,-154.86062544,0.00025,2]
[319668154,1710913753212,-24900.0,0.00029018,2]
[319668155,1710913753232,-469.98746995,0.00029361,2]
[319668156,1710913753252,-250.0,0.00029362,2]
[319668157,1710913753272,-174.73272,0.00029649,2]
[319668158,1710913753291,-174.73272,0.00029649,16]
[319668159,1710913753311,-174.73272,0.00029649,31]
[319668160,1710913753330,-174.73272,0.00029649,46]
[319668161,1710913753356,-174.73272,0.00029649,61]
[319668162,1710913753377,-174.73272,0.00029649,75]
[319668163,1710913753397,-174.73272,0.00029649,90]
[319668164,1710913753417,-174.73272,0.00029649,105]
[319668165,1710913753438,-174.73272,0.00029649,120]
[319668166,1710913753457,-1609.06716003,0.00029998,2]
[319668167,1710913753479,-2738.03664258,0.00029999,2]
[319668168,1710913754186,-536.36461442,0.00029999,2]
[319668169,1710913754207,-5236.93921001,0.0003,10]
[319668170,1710913754228,-597.80075257,0.00030377,2]
[319668171,1710913754248,-372.0,0.00030378,2]
[319668172,1710913754269,-13109.23758311,0.00030379,4]
[319668173,1710913754292,-680.57810154,0.0003038,10]
[319668174,1710913754422,-5166.41395051,0.00030383,2]
[319668175,1710913754442,-178.129948,0.00030699,2]
[319668176,1710913754462,-7986.9921674,0.0003089,10]
[319668177,1710913757104,-2591.26189827,0.0003089,10]
[319668280,1710913838646,-154.86062544,0.00025,2]
[319668281,1710913838666,-176.75577374,0.00025,2]
[319668282,1710913838678,-52.40900866,0.00025,2]